bitfinex/quotes_SOLUSD_20250106
["timestamp","ask_amount","ask_price","bid_price","bid_amount"]
[1736185875926,2.34,218.29,218.28,22.21618292]
[1736185876127,2.34,218.29,218.27,22.21618292]
[1736185876950,59.5138435,218.38,218.28,22.21618292]
[1736185877125,33.60726058,218.38,218.35,22.21618292]
[1736185878254,31.26726058,218.38,218.35,22.21618292]
[1736185878857,31.26726058,218.38,218.36,22.21618292]
[1736185879068,31.7979,218.46,218.37,22.21618292]
[1736185879069,2.34,218.42,218.37,22.21618292]
[1736185879259,2.34,218.42,218.39,22.21618292]
[1736185880267,2.34,218.42,218.38,22.21618292]
[1736185880441,24.55618292,218.42,218.35,22.21618292]
[1736185880947,2.34,218.42,218.37,22.21618292]
[1736185881133,2.34,218.42,218.33,1.603]
[1736185881134,2.34,218.42,218.38,22.21618292]
[1736185881338,2.34,218.42,218.39,22.21618292]
[1736185881533,2.34,218.43,218.4,22.21618292]
[1736185881761,2.34,218.43,218.34,31.45]
[1736185881956,22.21618292,218.41,218.34,42.21618292]
[1736185882436,22.21618292,218.41,218.34,22.21618292]
[1736185882658,45.99306692,218.4,218.33,22.21618292]
[1736185883065,45.99306692,218.4,218.34,22.21618292]
[1736185883238,2.34,218.43,218.34,22.21618292]
[1736185883239,22.21618292,218.41,218.34,22.21618292]
[1736185883836,22.21618292,218.42,218.35,22.21618292]
[1736185884133,2.34,218.43,218.37,22.21618292]
[1736185884557,2.34,218.43,218.31,31.451]
[1736185884753,2.34,218.43,218.38,22.21618292]
[1736185885448,22.21618292,218.4,218.34,22.21618292]
[1736185885643,22.21618292,218.4,218.33,22.21618292]
[1736185886160,22.21618292,218.39,218.32,22.21618292]
[1736185886660,22.21618292,218.38,218.31,22.21618292]
[1736185887360,23.776884,218.42,218.32,22.21618292]
[1736185887361,22.21618292,218.39,218.32,22.21618292]
[1736185887561,22.21618292,218.38,218.32,22.21618292]
[1736185888538,22.21618292,218.36,218.3,22.21618292]
[1736185888773,2.34,218.35,218.3,22.21618292]
[1736185888969,2.34,218.35,218.27,22.21618292]
[1736185888970,22.21618292,218.33,218.27,22.21618292]
[1736185889144,22.21618292,218.31,218.25,22.21618292]
[1736185890360,22.21618292,218.32,218.25,22.21618292]
[1736185890764,23.776884,218.34,218.21,22.21618292]
[1736185890765,22.21618292,218.28,218.21,22.21618292]
[1736185890936,22.21618292,218.28,218.15,12.14672118]
[1736185890937,22.21618292,218.26,218.19,22.21618292]
[1736185891141,22.21618292,218.25,218.18,22.21618292]
[1736185891336,22.21618292,218.25,218.16,23.75838292]
[1736185891337,22.21618292,218.22,218.16,23.75838292]
[1736185891753,22.21618292,218.22,218.15,22.21618292]
[1736185891955,22.21618292,218.2,218.13,22.21618292]
[1736185892869,22.21618292,218.21,218.14,22.21618292]
[1736185894754,22.21618292,218.2,218.14,22.21618292]
[1736185894960,22.21618292,218.19,218.13,22.21618292]
[1736185895175,2.34,218.18,218.13,22.21618292]
[1736185896471,2.34,218.18,218.07,18.078]
[1736185896472,22.21618292,218.14,218.04,1.5624]
[1736185896654,22.21618292,218.13,218.06,22.21618292]
[1736185896850,22.21618292,218.15,218.08,22.21618292]
[1736185897050,22.21618292,218.18,218.11,22.21618292]
[1736185897259,44.56353264,218.24,218.07,0.68756189]
[1736185897260,2.34,218.17,218.07,0.68756189]
[1736185897566,2.34,218.16,218.11,22.21618292]
[1736185900272,22.21618292,218.21,218.14,22.21618292]
[1736185900457,2.34,218.2,218.15,22.21618292]
[1736185900659,2.34,218.2,218.14,22.21618292]
[1736185901063,24.55618292,218.2,218.13,22.21618292]
[1736185901756,2.34,218.2,218.15,22.21618292]
[1736185902154,2.34,218.2,218.17,22.21618292]
[1736185902345,22.34734972,218.24,218.19,22.21618292]
[1736185902545,22.34734972,218.24,218.21,22.21618292]
[1736185903770,22.34734972,218.24,218.2,22.21618292]
[1736185905749,22.34734972,218.24,218.22,22.21618292]
[1736185906177,22.34734972,218.24,218.17,11.4588]
[1736185906178,22.34734972,218.24,218.21,22.21618292]
[1736185906982,22.34734972,218.24,218.17,31.4588]
[1736185906983,22.34734972,218.24,218.19,22.21618292]
[1736185907485,22.34734972,218.24,218.18,22.21618292]
[1736185908994,22.34734972,218.24,218.21,22.21618292]
[1736185909506,22.34734972,218.24,218.16,1.538]
[1736185909661,22.34734972,218.24,218.18,22.21618292]
[1736185909866,22.21618292,218.23,218.16,22.21618292]
[1736185910062,22.21618292,218.2,218.13,22.21618292]
[1736185910310,24.55618292,218.19,218.12,22.21618292]
[1736185910669,2.34,218.19,218.15,22.21618292]
[1736185911201,2.34,218.19,218.1,1.565]
[1736185911202,2.34,218.19,218.14,22.21618292]
[1736185911394,2.34,218.19,218.13,22.21618292]
[1736185911783,24.55618292,218.19,218.12,22.21618292]
[1736185912180,24.55618292,218.19,218.13,22.21618292]
[1736185913411,2.34,218.19,218.15,22.21618292]
[1736185913706,2.34,218.19,218.16,22.21618292]
[1736185913866,2.34,218.19,218.15,22.21618292]
[1736185915125,2.34,218.19,218.17,22.21618292]
[1736185915405,2.34,218.19,218.16,22.21618292]
[1736185915613,2.34,218.19,218.15,22.21618292]
[1736185917430,2.34,218.19,218.13,22.21618292]
[1736185917606,2.34,218.19,218.14,22.21618292]
[1736185917807,2.34,218.19,218.13,22.21618292]
[1736185918597,24.55618292,218.19,218.12,22.21618292]
[1736185919037,24.55618292,218.19,218.12,13.87475702]
[1736185919038,16.21475702,218.19,218.12,13.87475702]
[1736185919408,13.87475702,218.18,218.12,13.87475702]
[1736185920645,2.34,218.19,218.1,1.565]
[1736185920646,13.87475702,218.17,218.1,13.87475702]
[1736185920819,2.34,218.19,218.09,13.87475702]
[1736185920820,13.87475702,218.16,218.09,13.87475702]
[1736185921019,13.87475702,218.14,218.07,13.87475702]
[1736185922246,13.87475702,218.12,218.05,13.87475702]
[1736185922451,13.87475702,218.11,218.05,13.87475702]
[1736185922660,13.87475702,218.09,218.03,13.87475702]
[1736185922945,16.21475702,218.08,218.01,13.87475702]
[1736185923116,13.87475702,218.07,218.01,13.87475702]
[1736185923321,2.34,218.08,218.02,13.87475702]
[1736185924751,2.34,218.08,218.03,13.87475702]
[1736185925119,2.34,218.08,218.02,13.87475702]
[1736185926536,2.34,218.11,218.07,13.87475702]
[1736185926739,2.34,218.11,218.08,13.87475702]
[1736185927847,2.34,218.11,218.07,13.87475702]
[1736185928021,2.34,218.11,218.06,13.87475702]
[1736185928527,13.87475702,218.1,218.04,13.87475702]
[1736185928754,13.87475702,218.1,218.03,13.87475702]
[1736185929843,2.34,218.11,218.05,13.87475702]
[1736185930034,2.34,218.11,218.08,13.87475702]
[1736185930267,2.34,218.11,218.06,13.87475702]
[1736185930535,16.21475702,218.11,218.05,13.87475702]
[1736185930919,13.87475702,218.09,218.02,13.87475702]
[1736185931646,13.87475702,218.09,218.03,13.87475702]
[1736185931837,2.34,218.11,218.03,13.87475702]
[1736185931838,13.87475702,218.1,218.03,13.87475702]
[1736185932247,2.34,218.11,218.07,13.87475702]
[1736185932551,2.34,218.11,217.99,11.4679]
[1736185932552,2.34,218.11,218.06,13.87475702]
[1736185933851,2.34,218.11,218.05,13.87475702]
[1736185934064,2.34,218.11,217.99,12.28118922]
[1736185934065,16.21475702,218.11,218.04,13.87475702]
[1736185934363,13.87475702,218.09,218.02,13.87475702]
[1736185934749,16.21475702,218.11,218.04,13.87475702]
[1736185934924,16.21475702,218.11,217.99,11.4679]
[1736185934925,2.34,218.11,218.06,13.87475702]
[1736185935130,2.34,218.11,218.07,13.87475702]
[1736185935440,2.34,218.11,218.06,13.87475702]
[1736185935638,13.87475702,218.13,218.07,13.87475702]
[1736185936367,36.19475702,218.14,218.07,13.87475702]
[1736185936870,2.32,218.14,218.1,13.87475702]
[1736185937350,6.1231,218.17,218.11,13.87475702]
[1736185937668,2.32,218.14,218.12,13.87475702]
[1736185938036,13.87475702,218.19,218.13,13.87475702]
[1736185938364,16.19475702,218.18,218.11,13.87475702]
[1736185938743,20.0,218.17,218.13,13.87475702]
[1736185939058,20.43355702,218.22,218.15,13.87475702]
[1736185939246,2.32,218.21,218.17,13.87475702]
[1736185939443,2.32,218.21,218.18,13.87475702]
[1736185939752,2.32,218.21,218.08,12.27616923]
[1736185939753,2.32,218.21,218.2,13.87475702]
[1736185940274,22.34734972,218.24,218.19,13.87475702]
[1736185940453,2.32,218.23,218.18,13.87475702]
[1736185940768,2.32,218.23,218.17,13.87475702]
[1736185941140,2.32,218.23,218.18,13.87475702]
[1736185941974,22.34734972,218.24,218.21,13.87475702]
[1736185942173,2.32,218.23,218.17,20.0]
[1736185942374,2.32,218.27,218.22,13.87475702]
[1736185942553,2.32,218.27,218.26,13.87475702]
[1736185943044,6.3071,218.32,218.26,13.87475702]
[1736185943385,2.32,218.33,218.29,13.87475702]
[1736185943675,16.19475702,218.32,218.26,13.87475702]
[1736185944349,2.32,218.32,218.26,13.87475702]
[1736185944967,2.32,218.31,218.28,13.87475702]
[1736185945152,2.32,218.32,218.3,13.87475702]
[1736185945358,2.32,218.32,218.31,13.87475702]
[1736185945953,2.32,218.32,218.3,13.87475702]
[1736185946243,2.32,218.32,218.29,13.87475702]
[1736185946672,2.32,218.32,218.31,13.87475702]
[1736185947769,2.32,218.32,218.3,13.87475702]
[1736185947966,16.19475702,218.32,218.26,13.87475702]
[1736185948364,16.19475702,218.32,218.15,14.56594753]
[1736185948365,13.87475702,218.31,218.24,13.87475702]
[1736185948551,13.87475702,218.3,218.24,13.87475702]
[1736185948873,13.87475702,218.3,218.23,13.87475702]
[1736185949451,13.87475702,218.31,218.24,13.87475702]
[1736185949647,16.19475702,218.32,218.25,13.87475702]
[1736185949863,2.32,218.32,218.27,13.87475702]
[1736185950074,2.32,218.32,218.26,13.87475702]
[1736185950461,16.19475702,218.32,218.26,13.87475702]
[1736185950646,16.19475702,218.32,218.25,13.87475702]
[1736185951049,22.17419311,218.31,218.24,22.17419311]
[1736185951383,22.17419311,218.28,218.21,22.17419311]
[1736185951562,22.17419311,218.29,218.22,22.17419311]
[1736185951774,22.17419311,218.28,218.21,22.17419311]
[1736185951967,22.17419311,218.27,218.2,22.17419311]
[1736185952177,22.17419311,218.25,218.19,22.17419311]
[1736185952487,23.776884,218.31,218.16,22.17419311]
[1736185952488,22.17419311,218.23,218.16,22.17419311]
[1736185952658,24.49419311,218.22,218.16,22.17419311]
[1736185953252,2.32,218.22,218.17,22.17419311]
[1736185953554,2.32,218.23,218.18,22.17419311]
[1736185953755,2.32,218.23,218.22,22.17419311]
[1736185955190,2.32,218.23,218.21,22.17419311]
[1736185955499,2.32,218.23,218.2,22.17419311]
[1736185955799,2.32,218.23,218.21,22.17419311]
[1736185955967,2.32,218.23,218.22,22.17419311]
[1736185957200,2.32,218.23,218.21,22.17419311]
[1736185958377,2.32,218.23,218.2,22.17419311]
[1736185958578,2.32,218.23,218.22,22.17419311]
[1736185959897,6.5522,218.33,218.22,22.17419311]
[1736185960073,2.32,218.3,218.28,22.17419311]
[1736185960263,2.32,218.3,218.25,22.17419311]
[1736185961393,24.49419311,218.3,218.23,22.17419311]
[1736185961788,22.17419311,218.29,218.22,22.17419311]
[1736185962403,24.49419311,218.3,218.23,22.17419311]
[1736185963275,2.32,218.3,218.25,22.17419311]
[1736185963775,28.72639311,218.33,218.26,22.17419311]
[1736185964100,28.72639311,218.33,218.2,1.6191]
[1736185964101,2.32,218.32,218.27,22.17419311]
[1736185965914,2.32,218.32,218.29,22.17419311]
[1736185966116,2.32,218.32,218.2,1.6191]
[1736185966117,2.32,218.32,218.28,22.17419311]
[1736185967105,6.5522,218.33,218.28,22.17419311]
[1736185967307,2.32,218.32,218.28,22.17419311]
[1736185967507,2.32,218.32,218.29,22.17419311]
[1736185967819,6.2874,218.39,218.31,22.17419311]
[1736185967972,6.2874,218.39,218.24,22.86126989]
[1736185967973,6.2874,218.39,218.34,22.17419311]
[1736185968173,2.32,218.38,218.34,22.17419311]
[1736185968574,2.32,218.38,218.33,22.17419311]
[1736185968814,2.32,218.37,218.33,22.17419311]
[1736185969050,34.75273581,218.47,218.25,0.12549]
[1736185969051,11.4442,218.45,218.36,22.17419311]
[1736185969216,11.4442,218.45,218.26,12.14116472]
[1736185969217,2.32,218.42,218.39,22.17419311]
[1736185969406,2.32,218.42,218.4,22.17419311]
[1736185969717,2.32,218.42,218.38,22.17419311]
[1736185970204,2.32,218.42,218.37,22.17419311]
[1736185971214,2.32,218.42,218.38,13.84393064]
[1736185971402,2.32,218.42,218.39,13.84393064]
[1736185971714,37.62081464,218.45,218.38,13.84393064]
[1736185971913,2.32,218.41,218.38,13.84393064]
[1736185974521,2.32,218.41,218.39,13.84393064]
[1736185974890,37.62081464,218.45,218.39,13.84393064]
[1736185975106,2.32,218.41,218.39,13.84393064]
[1736185976115,2.32,218.41,218.4,13.84393064]
[1736185976305,23.776884,218.45,218.4,13.84393064]
[1736185976504,2.32,218.42,218.4,13.84393064]
[1736185976921,2.32,218.42,218.39,13.84393064]
[1736185977122,2.32,218.42,218.38,13.84393064]
[1736185979324,2.32,218.42,218.36,13.84393064]
[1736185979829,13.84393064,218.39,218.33,13.84393064]
[1736185980697,13.84393064,218.39,218.32,13.84393064]
[1736185981035,13.84393064,218.39,218.33,13.84393064]
[1736185981199,23.776884,218.39,218.33,13.84393064]
[1736185982130,2.32,218.39,218.34,13.84393064]
[1736185982301,2.32,218.39,218.35,13.84393064]
[1736185983010,2.32,218.39,218.34,13.84393064]
[1736185983225,2.32,218.39,218.27,11.4533]
[1736185983226,16.16393064,218.39,218.33,13.84393064]
[1736185983416,2.32,218.39,218.33,13.84393064]
[1736185983600,2.32,218.38,218.36,13.84393064]
[1736185983806,2.32,218.38,218.37,13.84393064]
[1736185986626,2.32,218.43,218.37,13.84393064]
[1736185986826,2.32,218.43,218.39,13.84393064]
[1736185987027,11.4417,218.5,218.41,13.84393064]
[1736185987028,13.84393064,218.48,218.41,13.84393064]
[1736185987328,2.32,218.47,218.42,13.84393064]
[1736185987721,13.84393064,218.49,218.42,13.84393064]
[1736185987909,2.32,218.46,218.42,13.84393064]
[1736185988639,2.32,218.46,218.41,13.84393064]
[1736185989125,2.32,218.46,218.42,13.84393064]
[1736185989707,2.32,218.46,218.41,13.84393064]
[1736185989931,16.16393064,218.46,218.39,13.84393064]
[1736185990108,13.84393064,218.45,218.39,13.84393064]
[1736185990803,16.16393064,218.46,218.39,13.84393064]
[1736185991222,16.16393064,218.46,218.35,1.575]
[1736185991223,23.776884,218.43,218.37,13.84393064]
[1736185992618,23.776884,218.43,218.38,13.84393064]
[1736185992931,23.776884,218.43,218.37,13.84393064]
[1736185993316,23.776884,218.43,218.38,13.84393064]
[1736185994306,13.84393064,218.44,218.38,13.84393064]
[1736185994513,25.28713064,218.47,218.4,13.84393064]
[1736185994710,13.84393064,218.5,218.43,13.84393064]
[1736185995020,2.3,218.49,218.43,13.84393064]
[1736185995442,23.776884,218.48,218.43,13.84393064]
[1736185995608,2.3,218.49,218.44,13.84393064]
[1736185995807,2.3,218.48,218.44,13.84393064]
[1736185996012,2.3,218.49,218.45,13.84393064]
[1736185996214,2.3,218.49,218.37,0.12549]
[1736185996215,6.0542,218.52,218.46,13.84393064]
[1736185996413,2.3,218.51,218.46,13.84393064]
[1736185996713,13.84393064,218.52,218.46,1.5848]
[1736185996914,6.6486,218.7,218.51,13.84393064]
[1736185996915,1.81781751,218.59,218.51,13.84393064]
[1736185997124,1.81781751,218.59,218.54,13.84393064]
[1736185997939,2.3,218.6,218.54,13.84393064]
[1736185999810,1.84083485,218.68,218.54,13.84393064]
[1736185999811,13.84393064,218.68,218.54,13.84393064]
[1736186000009,16.14393064,218.67,218.6,13.84393064]
[1736186000235,33.84393064,218.64,218.57,13.84393064]
[1736186000408,33.84393064,218.64,218.56,13.84393064]
[1736186000409,13.84393064,218.63,218.56,13.84393064]
[1736186000605,23.776884,218.62,218.58,13.84393064]
[1736186000834,23.776884,218.63,218.58,13.84393064]
[1736186001826,13.84393064,218.62,218.56,13.84393064]
[1736186002641,23.776884,218.63,218.6,13.84393064]
[1736186002941,26.076884,218.63,218.58,13.84393064]
[1736186003317,39.92081464,218.63,218.57,13.84393064]
[1736186003516,39.92081464,218.63,218.56,13.84393064]
[1736186003708,39.92081464,218.63,218.57,13.84393064]
[1736186003912,37.62081464,218.6,218.54,13.84393064]
[1736186004244,13.84393064,218.6,218.53,13.84393064]
[1736186004543,13.84393064,218.6,218.54,13.84393064]
[1736186005041,23.776884,218.58,218.52,13.84393064]
[1736186005227,13.84393064,218.6,218.54,13.84393064]
[1736186006032,13.84393064,218.57,218.51,13.84393064]
[1736186006638,13.84393064,218.56,218.5,13.84393064]
[1736186006824,13.84393064,218.57,218.51,13.84393064]
[1736186008126,23.776884,218.58,218.51,13.84393064]
[1736186008127,37.62081464,218.58,218.51,13.84393064]
[1736186008635,23.776884,218.58,218.52,13.84393064]
[1736186008940,23.776884,218.58,218.53,13.84393064]
[1736186009449,37.62081464,218.58,218.52,13.84393064]
[1736186010127,13.84393064,218.57,218.51,13.84393064]
[1736186010445,13.84393064,218.57,218.5,13.84393064]
[1736186010745,13.84393064,218.57,218.51,13.84393064]
[1736186011043,13.84393064,218.57,218.46,1.5848]
[1736186011213,2.3,218.59,218.55,13.84393064]
[1736186011418,2.3,218.59,218.46,15.42873064]
[1736186011419,2.3,218.59,218.56,13.84393064]
[1736186011630,25.27923064,218.63,218.56,13.84393064]
[1736186011943,2.3,218.62,218.58,13.84393064]
[1736186012944,2.3,218.62,218.57,13.84393064]
[1736186014943,2.3,218.62,218.57,8.84393064]
[1736186018745,2.3,218.62,218.59,13.84393064]
[1736186018931,2.3,218.64,218.59,13.84393064]
[1736186019917,2.3,218.64,218.58,13.84393064]
[1736186020321,13.84393064,218.62,218.56,13.84393064]
[1736186020538,13.84393064,218.61,218.54,13.84393064]
[1736186020852,13.84393064,218.58,218.51,13.84393064]
[1736186021854,13.84393064,218.57,218.5,13.84393064]
[1736186022147,13.84393064,218.59,218.53,13.84393064]
[1736186024547,13.84393064,218.58,218.52,13.84393064]
[1736186025549,13.84393064,218.57,218.51,13.84393064]
[1736186027353,13.84393064,218.58,218.52,13.84393064]
[1736186027649,23.776884,218.6,218.47,0.12549]
[1736186027650,37.62081464,218.6,218.53,13.84393064]
[1736186027949,23.776884,218.58,218.53,13.84393064]
[1736186029055,13.84393064,218.58,218.52,13.84393064]
[1736186029536,23.776884,218.58,218.53,13.84393064]
[1736186030248,13.84393064,218.6,218.53,13.84393064]
[1736186030453,2.3,218.61,218.58,13.84393064]
[1736186031153,2.3,218.61,218.57,13.84393064]
[1736186031762,2.3,218.62,218.56,13.84393064]
[1736186032758,16.14393064,218.62,218.56,13.84393064]
[1736186033056,13.84393064,218.61,218.55,13.84393064]
[1736186033739,16.14393064,218.62,218.56,13.84393064]
[1736186034126,13.84393064,218.61,218.55,13.84393064]
[1736186037951,13.84393064,218.57,218.51,13.84393064]
[1736186040156,13.84393064,218.58,218.52,13.84393064]
[1736186041560,23.776884,218.58,218.53,13.84393064]
[1736186044049,20.0,218.6,218.56,13.84393064]
[1736186044365,2.3,218.61,218.57,13.84393064]
[1736186045061,2.3,218.61,218.56,13.84393064]
[1736186046465,23.776884,218.64,218.51,0.12549]
[1736186046466,13.84393064,218.64,218.58,13.84393064]
[1736186046638,2.3,218.63,218.59,13.84393064]
[1736186047368,2.3,218.64,218.59,13.84393064]
[1736186047566,2.3,218.64,218.55,1.76909]
[1736186047567,20.0,218.66,218.62,13.84393064]
[1736186047739,2.3,218.65,218.62,13.84393064]
[1736186047934,20.0,218.66,218.6,13.84393064]
[1736186048841,2.3,218.67,218.61,13.84393064]
[1736186049372,2.3,218.67,218.63,13.84393064]
[1736186051663,2.3,218.67,218.63,0.12549]
[1736186051867,2.3,218.68,218.63,13.96942064]
[1736186053141,2.3,218.68,218.64,13.84393064]
[1736186053881,22.30141631,218.71,218.61,0.12549]
[1736186054169,22.30141631,218.71,218.69,13.84393064]
[1736186054468,22.30141631,218.71,218.68,13.84393064]
[1736186055141,22.30141631,218.71,218.68,0.12549]
[1736186055868,22.30141631,218.71,218.68,13.84393064]
[1736186056564,22.30141631,218.71,218.7,13.96942064]
[1736186056866,20.0,218.76,218.7,13.84393064]
[1736186057169,23.776884,218.77,218.71,13.84393064]
[1736186057544,37.62081464,218.77,218.7,13.84393064]
[1736186057894,13.84393064,218.76,218.7,0.12549]
[1736186058471,2.3,218.76,218.71,0.12549]
[1736186058647,2.3,218.76,218.7,13.84393064]
[1736186058849,16.14393064,218.76,218.7,0.12549]
[1736186059486,2.3,218.76,218.71,0.12549]
[1736186059693,2.3,218.76,218.71,13.96942064]
[1736186060484,2.3,218.76,218.67,0.12549]
[1736186060687,2.3,218.76,218.72,0.12549]
[1736186061197,2.3,218.76,218.73,8.83243726]
[1736186062794,2.3,218.78,218.73,8.83243726]
[1736186063478,2.3,218.78,218.73,0.12549]
[1736186064187,2.3,218.79,218.74,0.12549]
[1736186064501,2.3,218.79,218.72,8.83243726]
[1736186064502,11.13243726,218.79,218.72,8.83243726]
[1736186064862,11.13243726,218.79,218.73,0.12549]
[1736186065811,23.776884,218.8,218.73,0.12549]
[1736186065986,2.3,218.78,218.74,0.12549]
[1736186067172,2.3,218.78,218.74,8.83243726]
[1736186067397,2.3,218.78,218.74,0.12549]
[1736186067598,31.1213458,218.81,218.74,8.95792726]
[1736186067772,2.3,218.79,218.74,8.95792726]
[1736186068183,22.28890854,218.81,218.76,8.95792726]
[1736186068394,22.28890854,218.81,218.78,8.95792726]
[1736186068901,22.28890854,218.81,218.8,8.95792726]
[1736186069893,22.28890854,218.81,218.78,8.83243726]
[1736186070283,22.28890854,218.81,218.79,0.12549]
[1736186070895,22.28890854,218.81,218.79,8.83243726]
[1736186071302,22.28890854,218.81,218.8,0.12549]
[1736186071490,22.28890854,218.81,218.8,8.95792726]
[1736186073090,22.28890854,218.81,218.75,0.12549]
[1736186073295,22.28890854,218.81,218.8,8.95792726]
[1736186074127,2.3,218.88,218.81,0.12549]
[1736186074312,2.3,218.88,218.83,8.83243726]
[1736186074920,8.83243726,218.89,218.82,8.83243726]
[1736186075090,8.83243726,218.88,218.82,8.83243726]
[1736186075590,11.13243726,218.89,218.83,8.83243726]
[1736186076108,2.3,218.89,218.83,8.83243726]
[1736186076629,8.83243726,218.88,218.82,0.12549]
[1736186076795,11.13243726,218.89,218.82,8.83243726]
[1736186077632,11.13243726,218.89,218.72,5.0]
[1736186077633,8.83243726,218.83,218.69,19.13640673]
[1736186077947,8.83243726,218.83,218.76,8.83243726]
[1736186078130,8.83243726,218.82,218.69,19.13640673]
[1736186078279,8.83243726,218.81,218.75,0.12549]
[1736186078480,11.13243726,218.81,218.75,0.12549]
[1736186078710,11.13243726,218.81,218.74,10.45963726]
[1736186078899,2.3,218.81,218.75,8.83243726]
[1736186079097,2.3,218.81,218.77,8.95792726]
[1736186079818,8.83243726,218.78,218.67,3.4945021]
[1736186080022,2.3,218.81,218.67,10.49543726]
[1736186080023,8.83243726,218.74,218.67,10.49543726]
[1736186080228,2.3,218.73,218.69,8.83243726]
[1736186080452,2.3,218.73,218.67,1.663]
[1736186080453,2.3,218.73,218.7,8.83243726]
[1736186080589,2.3,218.73,218.71,8.83243726]
[1736186080785,2.3,218.73,218.7,8.83243726]
[1736186081911,2.3,218.73,218.7,0.12549]
[1736186082948,2.3,218.73,218.68,8.83243726]
[1736186083455,11.13243726,218.73,218.67,0.12549]
[1736186083661,8.83243726,218.71,218.64,8.83243726]
[1736186083819,8.83243726,218.71,218.65,0.12549]
[1736186084933,8.83243726,218.71,218.65,8.95792726]
[1736186085130,8.83243726,218.7,218.62,1.6358]
[1736186085433,8.83243726,218.7,218.63,8.95792726]
[1736186086512,8.83243726,218.69,218.63,8.95792726]
[1736186086712,8.83243726,218.69,218.63,0.12549]
[1736186087735,8.83243726,218.69,218.63,8.95792726]
[1736186087943,2.3,218.7,218.67,8.83243726]
[1736186088239,2.3,218.7,218.66,0.12549]
[1736186088411,2.3,218.7,218.66,8.95792726]
[1736186089019,2.3,218.7,218.66,0.12549]
[1736186091128,2.3,218.7,218.65,0.12549]
[1736186091328,2.3,218.7,218.65,13.93341033]
[1736186091850,2.3,218.7,218.65,0.12549]
[1736186092143,13.80792033,218.67,218.62,21.6358]
[1736186092745,13.80792033,218.68,218.62,21.6358]
[1736186092935,13.80792033,218.68,218.63,0.25098]
[1736186093558,13.80792033,218.68,218.61,13.80792033]
[1736186093845,13.80792033,218.65,218.59,13.80792033]
[1736186094033,13.80792033,218.65,218.6,0.25098]
[1736186094421,13.80792033,218.66,218.6,0.25098]
[1736186094838,23.776884,218.69,218.61,13.80792033]
[1736186094839,13.80792033,218.67,218.61,13.80792033]
[1736186095535,35.208584,218.69,218.61,13.80792033]
[1736186095738,13.80792033,218.67,218.61,0.25098]
[1736186097759,13.80792033,218.67,218.6,13.80792033]
[1736186097940,13.80792033,218.65,218.58,13.80792033]
[1736186098141,13.80792033,218.66,218.59,13.80792033]
[1736186098946,13.80792033,218.67,218.6,13.80792033]
[1736186100057,13.80792033,218.66,218.59,13.80792033]
[1736186100256,13.80792033,218.65,218.59,13.80792033]
[1736186100960,13.80792033,218.66,218.59,13.80792033]
[1736186101154,2.3,218.7,218.57,20.25098]
[1736186101155,16.10792033,218.7,218.63,13.80792033]
[1736186101353,13.80792033,218.68,218.6,0.12549]
[1736186101545,13.80792033,218.68,218.62,0.25098]
[1736186101739,33.80792033,218.7,218.64,13.80792033]
[1736186101944,2.3,218.69,218.66,13.80792033]
[1736186102147,2.3,218.69,218.62,0.25098]
[1736186102341,13.80792033,218.67,218.61,13.80792033]
[1736186103372,13.80792033,218.67,218.61,0.25098]
[1736186103680,13.80792033,218.64,218.57,13.80792033]
[1736186103846,13.80792033,218.64,218.58,0.12549]
[1736186104047,37.58480433,218.68,218.58,0.25098]
[1736186104351,13.80792033,218.63,218.56,15.39872033]
[1736186105255,13.80792033,218.64,218.58,13.80792033]
[1736186105559,13.80792033,218.64,218.57,14.05890033]
[1736186105861,13.80792033,218.63,218.57,0.25098]
[1736186107857,13.80792033,218.63,218.56,15.39872033]
[1736186108057,13.80792033,218.62,218.56,1.5908]
[1736186108249,13.80792033,218.63,218.56,15.39872033]
[1736186108655,13.80792033,218.61,218.56,1.5908]
[1736186108967,16.10792033,218.61,218.56,1.5908]
[1736186109171,2.3,218.61,218.56,1.5908]
[1736186109335,2.3,218.61,218.59,13.80792033]
[1736186109542,2.3,218.65,218.6,13.80792033]
[1736186110499,2.3,218.65,218.63,13.80792033]
[1736186110835,2.3,218.67,218.63,13.80792033]
[1736186111347,13.80792033,218.69,218.62,13.80792033]
[1736186111569,11.14038963,218.68,218.61,8.84038963]